bitfinex-derivatives/quotes_ETHF0:USTF0_20240910
["timestamp","ask_amount","ask_price","bid_price","bid_amount"]
[1725955213210,1.48298226,2364.5,2364.4,5.7098]
[1725955213518,2.2159463,2364.8,2364.7,0.42286]
[1725955213815,2.2159463,2364.9,2364.8,0.42284]
[1725955214003,2.2159463,2364.9,2364.8,1.5361012]
[1725955214415,2.2159463,2364.9,2364.8,1.53597597]
[1725955214610,2.76195632,2364.9,2364.8,0.66093597]
[1725955214811,2.76195632,2364.9,2364.6,0.42286]
[1725955214812,7.38213617,2364.9,2364.6,0.42286]
[1725955215109,0.42287,2364.7,2364.3,0.87512]
[1725955215311,2.21526268,2364.4,2364.3,0.87512]
[1725955215513,2.76907835,2364.4,2364.3,0.66108983]
[1725955215713,5.49899528,2364.4,2364.2,0.42294]
[1725955215910,3.21887835,2364.4,2364.2,0.42294]
[1725955216213,2.28023457,2364.3,2364.2,0.42294]
[1725955216412,5.04931292,2364.3,2364.2,0.66112475]
[1725955216616,5.04931292,2364.3,2363.9,0.54091588]
[1725955216617,2.70316457,2364.3,2363.9,0.54091588]
[1725955216916,2.77044276,2364.1,2364.0,1.08418241]
[1725955217113,5.05067733,2364.1,2364.0,1.29802902]
[1725955217304,3.22024276,2364.1,2364.0,0.87503902]
[1725955217507,5.50047733,2364.1,2364.0,1.29802902]
[1725955218311,5.50047733,2364.1,2364.0,0.87503902]
[1725955218615,5.50047733,2364.1,2364.0,3.93802902]
[1725955219207,7.38340457,2364.1,2364.0,0.66119241]
[1725955219410,7.38340457,2364.1,2363.5,0.099]
[1725955219411,0.42304,2363.7,2363.5,0.099]
[1725955219630,2.73953457,2363.6,2363.4,3.06309]
[1725955219820,0.4593,2363.6,2363.5,3.06308]
[1725955220014,3.23038352,2363.6,2363.5,2.64]
[1725955220212,5.51164134,2363.6,2363.5,3.06308]
[1725955221124,0.4593,2363.6,2363.5,3.06308]
[1725955221913,3.31434758,2364.0,2363.8,0.42301]
[1725955222118,2.76897165,2364.0,2363.9,2.64]
[1725955222316,5.02502554,2364.0,2363.9,2.64]
[1725955222711,6.90944389,2364.0,2363.9,2.85499234]
[1725955222917,0.42302,2363.9,2363.8,2.64]
[1725955223123,2.67930117,2363.9,2363.8,2.64]
[1725955223319,2.67928117,2363.9,2363.8,2.64]
[1725955224328,6.90968117,2363.9,2363.8,2.64]
[1725955226518,12.48668117,2363.9,2363.3,2.739]
[1725955226719,0.42309,2363.4,2363.3,0.099]
[1725955226920,0.42309,2363.4,2363.1,3.06315]
[1725955226921,3.19051645,2363.4,2363.1,3.06315]
[1725955227135,3.10581988,2363.3,2363.1,3.06315]
[1725955227429,3.52893988,2363.3,2363.1,3.06315]
[1725955227725,3.52893988,2363.3,2363.1,2.64]
[1725955227923,2.21421988,2363.2,2363.1,2.64]
[1725955228226,3.52893988,2363.3,2363.1,2.64]
[1725955228524,3.10581988,2363.3,2363.1,3.06314]
[1725955229017,3.52893988,2363.3,2363.1,3.06314]
[1725955229627,3.10581988,2363.3,2363.2,0.42313]
[1725955229817,3.10581988,2363.3,2363.1,2.64]
[1725955230023,3.10581988,2363.3,2363.2,0.42313]
[1725955230329,0.8916,2363.3,2363.2,0.42313]
[1725955230522,0.8916,2363.3,2363.1,3.06313]
[1725955230921,0.8916,2363.3,2363.1,3.06314]
[1725955231231,0.8916,2363.3,2363.2,0.42313]
[1725955231428,0.8916,2363.3,2363.1,3.06314]
[1725955231723,1.31472,2363.3,2363.1,3.06314]
[1725955231925,3.52893988,2363.3,2363.1,3.06314]
[1725955232126,1.31472,2363.3,2363.1,3.06314]
[1725955232427,1.31472,2363.3,2363.1,3.06315]
[1725955233323,0.42313,2363.2,2363.1,2.64]
[1725955233516,1.31472,2363.3,2363.1,3.06315]
[1725955233918,0.42313,2363.2,2363.1,3.06315]
[1725955234119,1.31472,2363.3,2363.1,3.06314]
[1725955234527,0.42313,2363.2,2363.1,2.64]
[1725955234722,0.42315,2363.1,2362.9,3.0905]
[1725955234924,0.42315,2363.1,2362.9,3.06318]
[1725955235129,0.4631,2363.0,2362.9,3.06318]
[1725955236132,0.88626,2363.0,2362.9,2.64]
[1725955236834,0.4232,2362.9,2362.7,3.06321]
[1725955237025,1.3509,2362.9,2362.7,3.06321]
[1725955237535,1.35089,2362.9,2362.7,3.06321]
[1725955238037,1.35089,2362.9,2362.8,0.4232]
[1725955239131,5.1597,2362.9,2362.4,0.8987]
[1725955239331,0.42325,2362.5,2362.4,3.1]
[1725955239635,0.42325,2362.5,2362.4,2.64]
[1725955240338,0.89845,2362.5,2362.4,3.06327]
[1725955240530,0.4752,2362.5,2362.4,3.06327]
[1725955240941,2.21421988,2363.1,2362.4,7.93097]
[1725955241230,0.4484,2363.0,2362.9,3.06318]
[1725955241726,0.4752,2363.1,2362.9,2.64]
[1725955242038,0.87152,2363.3,2363.0,0.42316]
[1725955242336,0.87152,2363.3,2363.1,3.06314]
[1725955242337,0.9236,2363.3,2363.1,3.06314]
[1725955242523,0.9236,2363.3,2363.2,0.42313]
[1725955242926,5.57792,2363.3,2363.1,2.64]
[1725955243132,1.34672,2363.3,2363.1,2.64]
[1725955243329,1.34672,2363.3,2363.1,3.06314]
[1725955243723,0.9236,2363.3,2363.1,2.64]
[1725955243929,1.34672,2363.3,2363.1,3.06315]
[1725955244338,0.4484,2363.3,2363.2,0.42313]
[1725955244543,0.4536,2363.6,2363.3,0.4231]
[1725955244727,0.9148,2363.7,2363.5,2.64]
[1725955245535,1.33784,2363.7,2363.5,2.64]
[1725955245840,0.9148,2363.7,2363.5,2.64]
[1725955246734,0.9148,2363.7,2363.5,3.0782]
[1725955248237,0.9148,2363.7,2363.5,3.50126]
[1725955248739,0.9148,2363.7,2363.5,3.0782]
[1725955248939,1.33785,2363.7,2363.5,0.4382]
[1725955249139,1.33785,2363.7,2363.3,3.0631]
[1725955249340,0.9148,2363.7,2363.1,2.739]
[1725955249544,0.42307,2363.6,2363.2,0.42312]
[1725955249837,0.9148,2363.7,2363.4,0.42308]
[1725955250039,0.9148,2363.7,2363.5,0.4463]
[1725955250340,1.33784,2363.7,2363.5,0.4463]
[1725955250739,0.9148,2363.7,2363.5,0.4463]
[1725955250940,0.9148,2363.7,2363.5,0.86937]
[1725955251240,0.9148,2363.7,2363.5,3.50936]
[1725955252040,1.33784,2363.7,2363.5,0.4463]
[1725955252247,1.33785,2363.7,2363.4,0.42309]
[1725955252648,0.9148,2363.7,2363.4,0.42309]
[1725955252848,0.9148,2363.7,2363.3,0.4231]
[1725955252849,0.42307,2363.6,2363.3,0.4231]
[1725955253141,0.42306,2363.6,2363.4,0.42308]
[1725955253335,1.33785,2363.7,2363.4,0.42308]
[1725955255745,0.63470765,2363.6,2363.4,0.42308]
[1725955255941,1.33785,2363.7,2363.4,0.42308]
[1725955256143,0.6347024,2363.6,2363.4,0.42308]
[1725955256447,1.33785,2363.7,2363.4,0.42308]
[1725955256844,0.21164061,2363.6,2363.4,0.42308]
[1725955257037,0.42306,2363.6,2363.4,0.42308]
[1725955257243,0.42307,2363.6,2363.4,0.42308]
[1725955257838,1.33785,2363.7,2363.5,0.42308]
[1725955258041,0.21164578,2363.6,2363.5,0.42308]
[1725955258947,0.63471578,2363.6,2363.4,0.42309]
[1725955259152,0.42307,2363.6,2363.5,0.42308]
[1725955259451,0.63471567,2363.6,2363.4,0.42308]
[1725955259645,0.21164567,2363.5,2363.4,0.42308]
[1725955259844,1.33785,2363.7,2363.5,0.42308]
[1725955259845,3.55206988,2363.7,2363.5,0.42308]
[1725955260039,0.63470739,2363.6,2363.5,0.42308]
[1725955260442,0.21164739,2363.6,2363.5,0.42308]
[1725955260848,3.55206988,2363.7,2363.5,0.42308]
[1725955261042,0.21164075,2363.6,2363.5,0.42308]
[1725955261239,0.21164075,2363.6,2363.5,0.89618]
[1725955261450,3.76368966,2363.7,2363.6,0.42306]
[1725955261645,3.76369284,2363.7,2363.6,0.42306]
[1725955261947,1.54947296,2363.7,2363.6,0.42306]
[1725955262147,3.76369284,2363.7,2363.6,0.42306]
[1725955263749,3.55205988,2363.7,2363.6,0.42306]
[1725955263943,0.42306,2363.6,2363.5,0.4731]
[1725955264146,3.12901988,2363.7,2363.5,0.42306]
[1725955264458,3.12901988,2363.7,2363.3,2.64]
[1725955264662,0.42306,2363.6,2363.3,2.64]
[1725955264845,3.76371253,2363.7,2363.5,0.42308]
[1725955265152,0.42306,2363.6,2363.5,0.42308]
[1725955266151,3.12901988,2363.7,2363.3,2.64]
[1725955266152,1.33785,2363.7,2363.3,2.64]
[1725955266550,1.33785,2363.7,2363.5,0.42307]
[1725955266948,1.33784,2363.7,2363.6,0.42306]
[1725955267358,0.86944,2363.7,2363.6,0.42306]
[1725955267649,3.20872645,2363.9,2363.8,0.42302]
[1725955267650,3.23572645,2363.9,2363.8,0.42302]
[1725955267843,2.76742645,2363.9,2363.8,0.42302]
[1725955269254,3.19044645,2363.9,2363.7,0.4466]
[1725955269448,2.76742645,2363.9,2363.5,2.64]
[1725955269649,0.9617,2363.8,2363.3,3.1856]
[1725955269844,1.38473,2363.8,2363.6,0.42305]
[1725955270052,0.9617,2363.8,2363.6,0.42305]
[1725955270243,1.38473,2363.8,2363.6,0.42305]
[1725955270447,0.42304,2363.7,2363.3,3.0866]
[1725955270644,1.38474,2363.8,2363.6,0.42306]
[1725955271166,0.42304,2363.7,2363.6,0.42306]
[1725955271754,0.42304,2363.7,2363.3,3.0866]
[1725955271755,0.42305,2363.7,2363.3,3.0866]
[1725955271957,0.4591,2363.6,2363.5,0.42306]
[1725955272158,0.9617,2363.8,2363.7,0.42304]
[1725955272348,0.4591,2364.0,2363.9,0.423]
[1725955272559,0.8995,2364.0,2363.9,0.423]
[1725955275552,0.88209,2364.0,2363.9,0.423]
[1725955275762,0.4591,2364.0,2363.9,0.423]
[1725955276059,3.22528373,2364.0,2363.9,0.423]
[1725955276255,5.70522602,2364.0,2363.7,3.30265567]
[1725955276457,2.21273823,2363.8,2363.7,1.08569567]
[1725955276653,2.42435409,2363.8,2363.7,1.08569567]
[1725955276853,2.21273823,2363.9,2363.8,0.42302]
[1725955277158,2.42425637,2363.9,2363.8,0.42302]
[1725955280557,0.21161355,2363.9,2363.8,0.42302]
[1725955280860,2.84725637,2363.9,2363.8,0.42302]
[1725955281065,2.42425637,2363.9,2363.8,0.42302]
[1725955281755,1.76306396,2363.9,2363.8,12.76854]
[1725955281960,1.65865758,2364.2,2364.0,1.05744]
[1725955282156,1.65865758,2364.2,2364.1,1.79377]
[1725955282359,1.65865758,2364.3,2364.2,0.42295]
[1725955282560,1.65865758,2364.3,2364.2,3.06295]
[1725955283266,0.4565,2364.5,2364.4,0.42291]
[1725955283267,1.65865758,2364.5,2364.4,0.42291]
[1725955283471,3.69298373,2365.0,2364.5,1.48015]
[1725955283661,2.76618373,2365.1,2365.0,0.42281]
[1725955283862,2.76618373,2365.1,2365.0,3.52091]
[1725955283863,1.65733324,2365.1,2365.0,3.52091]
[1725955284371,1.65733324,2365.2,2365.0,3.52091]
[1725955284560,1.65733324,2365.2,2365.0,3.0981]
[1725955284766,1.65733324,2365.2,2365.0,3.5209]
[1725955285066,0.4555,2365.4,2364.9,0.20977837]
[1725955285067,2.08012324,2365.1,2364.9,2.64]
[1725955285366,2.55143324,2365.1,2364.9,2.64]
[1725955285573,0.4555,2365.0,2364.9,2.64]
[1725955286065,2.53564324,2365.0,2364.9,2.64]
[1725955286267,2.53564324,2365.0,2364.7,0.42286]
[1725955286268,0.87831,2365.0,2364.7,3.06286]
[1725955286466,1.65531293,2364.9,2364.7,3.06286]
[1725955286767,2.53362293,2365.0,2364.7,3.06286]
[1725955287472,1.65531293,2364.9,2364.7,3.06286]
[1725955287676,2.53362293,2365.0,2364.7,3.06286]
[1725955288875,2.11081293,2365.0,2364.7,3.06286]
[1725955289071,2.11081293,2365.0,2364.5,0.7933915]
[1725955289072,2.11081293,2365.0,2364.9,2.64]
[1725955289266,0.4555,2365.0,2364.9,3.06282]
[1725955289970,1.65531293,2365.3,2365.1,0.42279]
[1725955290172,2.07806293,2365.3,2365.1,0.42279]
[1725955290363,2.99005293,2365.4,2365.2,0.42277]
[1725955290563,2.99005293,2365.4,2365.2,3.06277]
[1725955290564,2.56731293,2365.4,2365.2,3.06277]
[1725955290771,0.912,2365.4,2365.2,3.06277]
[1725955291562,0.42275,2365.3,2365.0,3.0999]
[1725955291771,0.912,2365.4,2365.1,0.42278]
[1725955291772,1.33475,2365.4,2365.1,0.42278]
[1725955291972,0.42276,2365.3,2365.0,3.0999]
[1725955292165,0.912,2365.4,2365.1,0.42278]
[1725955292166,1.33475,2365.4,2365.1,0.42278]
[1725955292369,1.33475,2365.4,2365.1,0.42279]
[1725955292673,0.42276,2365.3,2365.1,0.42278]
[1725955292866,1.33474,2365.4,2365.0,3.0999]
[1725955293063,1.33474,2365.4,2365.2,0.42277]
[1725955293266,1.33474,2365.4,2365.1,0.42278]
[1725955293475,0.42276,2365.3,2365.0,3.0999]
[1725955293674,0.912,2365.4,2364.9,0.63115685]
[1725955293865,0.912,2365.4,2364.8,3.06283]
[1725955293866,0.42281,2365.1,2364.8,3.06283]
[1725955294067,0.4648,2365.2,2364.6,7.1743]
[1725955294068,0.903,2365.0,2364.6,7.1743]
[1725955294270,0.42282,2364.9,2364.7,0.42285]
[1725955294467,0.42282,2364.9,2364.8,0.42284]
[1725955294678,1.32581,2365.0,2364.8,0.42284]
[1725955295377,0.42282,2364.9,2364.7,0.42285]
[1725955295576,0.42282,2364.9,2364.6,7.1743]
[1725955295577,0.42283,2364.9,2364.6,7.1743]
[1725955295784,1.65531293,2365.3,2364.7,2.64]
[1725955296077,0.42277,2365.2,2365.0,0.4228]
[1725955296587,0.912,2365.3,2364.9,3.06282]
[1725955296876,0.42281,2365.0,2364.9,3.06282]
[1725955297079,1.05697,2365.2,2364.8,3.06283]
[1725955297270,0.42282,2365.0,2364.8,3.06283]
[1725955298277,2.56731293,2365.3,2364.9,2.64]
[1725955298473,1.33476,2365.3,2365.2,2.64]
[1725955298680,1.33476,2365.3,2365.2,3.06277]
[1725955298979,4.173,2365.5,2365.3,0.42274]
[1725955299279,4.59572,2365.5,2365.3,0.42274]
[1725955299876,4.59572,2365.5,2365.2,3.06276]
[1725955301389,0.42274,2365.4,2365.2,3.06276]
[1725955301575,0.88364,2365.4,2365.2,3.06276]
[1725955301975,0.4609,2365.4,2365.2,3.06276]
[1725955302586,0.4609,2365.4,2365.2,2.64]
[1725955302889,0.88364,2365.4,2365.2,3.06277]
[1725955304680,0.4609,2365.4,2365.2,3.06277]
[1725955304887,0.4609,2365.4,2365.2,2.64]
[1725955305186,0.89841,2365.6,2365.2,2.64]
[1725955305390,0.42272,2365.5,2365.3,0.42274]
[1725955306289,0.42272,2365.5,2365.3,0.42275]
[1725955306486,0.4581,2365.4,2365.2,2.64]
[1725955306683,0.4581,2365.4,2365.3,0.42275]
[1725955306985,0.88084,2365.4,2365.2,3.06276]
[1725955307188,0.4581,2365.4,2365.3,0.42275]
[1725955307779,0.89841,2365.6,2365.2,2.64]
[1725955307780,0.89841,2365.6,2365.4,0.42273]
[1725955308389,0.89841,2365.6,2365.5,0.42272]
[1725955308390,0.4757,2365.6,2365.5,0.42272]
[1725955308590,3.82276373,2366.1,2365.4,2.64]
[1725955308591,1.65531293,2365.9,2365.4,6.8672]
[1725955308790,1.65531293,2365.9,2365.2,0.4376]
[1725955308791,0.902,2366.1,2365.8,2.64]
[1725955309094,0.42265,2365.9,2365.8,2.64]
[1725955309292,0.42263,2366.0,2365.8,2.64]
[1725955310192,0.42263,2366.0,2365.8,3.06266]
[1725955310392,0.42263,2366.0,2365.8,2.64]
[1725955310696,0.42263,2366.0,2365.8,3.06266]
[1725955310898,1.32462,2366.1,2365.8,3.06266]
[1725955311096,1.32462,2366.1,2365.8,2.64]
[1725955311097,0.902,2366.1,2365.8,2.64]
[1725955311290,1.65531293,2366.4,2366.0,2.64]
[1725955311489,2.53356293,2366.5,2366.3,2.64]
[1725955311690,0.87825,2366.5,2366.3,2.64]
[1725955311988,0.889,2366.7,2366.4,0.42255]
[1725955311989,2.09211293,2366.7,2366.4,0.42255]
[1725955312301,0.4368,2366.7,2366.5,2.64]
[1725955315997,0.8593,2366.7,2366.5,2.64]
[1725955316404,0.4368,2366.7,2366.5,2.64]
[1725955316899,0.4368,2366.7,2366.5,3.06253]
[1725955318193,0.4368,2366.7,2366.6,0.42252]
[1725955318505,0.42246,2367.0,2366.7,0.4225]
[1725955318697,0.42247,2366.9,2366.8,2.64]
[1725955319100,0.4552,2367.0,2366.8,2.64]
[1725955319297,0.87766,2367.0,2366.8,2.64]
[1725955320007,0.42247,2366.9,2366.8,2.64]
[1725955320396,0.4552,2367.0,2366.6,2.64]
[1725955320697,0.42249,2366.8,2366.6,2.64]
[1725955320891,0.42248,2366.9,2366.6,3.06252]
[1725955321098,0.42249,2366.8,2366.6,3.06252]
[1725955321291,0.4552,2367.0,2366.7,0.4225]
[1725955321292,0.42248,2366.9,2366.7,0.4225]
[1725955321496,0.4552,2367.0,2366.7,0.4225]
[1725955321497,0.87766,2367.0,2366.7,0.4225]
[1725955322003,0.4478,2367.1,2366.9,2.64]
[1725955322195,0.4478,2367.1,2367.0,0.42245]
[1725955322393,0.4478,2367.1,2366.9,2.64]
[1725955322597,0.4478,2367.1,2367.0,0.42245]
[1725955323302,0.4748,2367.2,2367.0,0.42245]
[1725955323600,2.71120293,2367.6,2367.1,2.64]
[1725955323601,0.9578,2367.5,2367.1,2.64]
[1725955323815,0.9578,2367.5,2367.1,3.06243]
[1725955323816,0.86039,2367.4,2367.1,3.06243]
[1725955325804,0.4224,2367.3,2367.1,2.64]
[1725955326000,0.438,2367.4,2366.9,3.40006692]
[1725955326195,0.42244,2367.1,2366.9,3.06246]
[1725955326396,1.056,2367.3,2366.9,2.64]
[1725955326600,0.4421,2367.0,2366.9,3.06246]
[1725955328603,0.42243,2367.2,2366.9,3.06246]
[1725955329904,0.42243,2367.2,2367.0,0.42245]
[1725955330403,0.42243,2367.1,2366.9,3.06245]
[1725955330604,0.42243,2367.2,2366.9,3.06245]
[1725955331198,0.481,2367.3,2367.0,0.42245]
[1725955331403,0.481,2367.3,2366.9,3.06245]
[1725955331604,0.42244,2367.1,2366.9,3.06245]
[1725955331804,0.42244,2367.1,2367.0,0.42245]
[1725955331997,0.42243,2367.2,2367.0,0.42245]
[1725955332409,0.481,2367.3,2367.1,2.64]
[1725955332603,0.90341,2367.3,2367.2,0.42241]
[1725955333311,0.90341,2367.3,2367.1,3.06242]
[1725955333515,0.42241,2367.2,2367.1,2.64]
[1725955335815,0.42245,2367.0,2366.9,2.64]
[1725955336017,0.42245,2367.0,2366.7,0.99669]
[1725955336018,0.42247,2366.9,2366.8,0.42247]
[1725955336214,1.05609,2367.1,2366.7,3.1152]
[1725955336412,1.05609,2367.1,2366.8,0.42249]
[1725955336714,0.42246,2367.0,2366.8,0.42249]
[1725955336911,0.42244,2367.1,2367.0,0.42244]
[1725955337315,0.42245,2367.0,2366.9,2.64]
[1725955337506,0.88085,2367.0,2366.9,2.64]
[1725955338510,0.4584,2367.0,2366.9,3.06247]
[1725955339115,0.42244,2367.1,2367.0,0.42245]
[1725955339823,0.42242,2367.2,2367.1,0.42243]
[1725955340115,0.9458,2367.3,2366.9,2.64]
[1725955340116,0.42245,2367.0,2366.9,2.64]
[1725955343021,0.86565,2367.0,2366.9,2.64]
[1725955346129,1.09754434,2367.2,2367.0,0.42245]
[1725955346422,0.42244,2367.1,2367.0,0.42245]
[1725955347529,0.42244,2367.1,2367.0,0.42244]
[1725955347714,0.42245,2367.0,2366.9,3.06246]
[1725955347913,1.09754434,2367.2,2367.0,0.42245]
[1725955347914,0.42245,2367.1,2367.0,0.42245]
[1725955348322,1.51999434,2367.1,2367.0,0.42245]
[1725955349615,0.42245,2367.0,2366.9,3.06245]
[1725955349816,0.42245,2367.0,2366.9,3.06246]
[1725955350323,1.51999434,2367.0,2366.9,3.06246]
[1725955350526,1.09754434,2367.0,2366.9,3.06246]
[1725955351027,1.51999434,2367.0,2366.9,3.06246]
[1725955351219,1.51999434,2367.0,2366.9,2.64]
[1725955351423,2.07776293,2367.0,2366.9,2.64]
[1725955351725,2.28911358,2367.0,2366.9,2.64]
[1725955351918,2.07776293,2367.0,2366.9,2.64]
[1725955352115,3.34523989,2367.0,2366.9,2.64]
[1725955352320,0.42248,2366.9,2366.8,0.42248]
[1725955352519,3.45339547,2366.9,2366.8,0.42248]
[1725955352825,3.66474243,2366.9,2366.8,0.42248]
[1725955353133,2.00932696,2366.9,2366.8,0.42248]
[1725955353328,4.20983773,2366.9,2366.8,0.42248]
[1725955353823,0.42249,2366.8,2366.7,3.53769]
[1725955354028,3.99849077,2366.9,2366.8,0.42249]
[1725955354333,2.00933894,2366.9,2366.8,0.42249]
[1725955355329,4.56416373,2366.9,2366.8,0.42249]
[1725955355523,3.85462267,2366.9,2366.8,0.42249]
[1725955355729,5.99663269,2366.9,2366.8,0.42249]
[1725955356234,3.23044896,2366.9,2366.8,0.42249]
[1725955356927,3.64363163,2366.9,2366.8,0.42249]
[1725955357124,1.08843894,2366.9,2366.7,3.53769]
[1725955357321,3.1891086,2366.8,2366.7,3.1152]
[1725955357522,5.54247756,2366.8,2366.7,3.1152]
[1725955357928,5.54247756,2366.8,2366.7,3.5377]
[1725955357929,2.77585896,2366.8,2366.7,3.5377]
[1725955358327,2.56743697,2366.8,2366.7,3.5377]
[1725955358523,2.77879874,2366.8,2366.7,3.5377]
[1725955359228,2.77879874,2366.8,2366.7,3.1152]
[1725955359423,3.23809874,2366.8,2366.7,3.1152]
[1725955359826,3.23809874,2366.8,2366.7,3.5377]
[1725955360025,3.23809874,2366.8,2366.7,3.1152]
[1725955360518,2.35630874,2366.8,2366.7,3.5377]
[1725955361534,2.35662178,2366.8,2366.7,3.1152]
[1725955361732,4.18538047,2367.0,2366.7,3.1152]
[1725955361928,2.35662579,2366.9,2366.8,0.42249]
[1725955362741,0.42249,2366.8,2366.7,3.53769]
[1725955362928,2.77911579,2366.8,2366.4,0.099]
[1725955363131,0.42257,2366.3,2366.2,2.739]
[1725955363425,0.42257,2366.3,2365.9,1.0904708]
[1725955363426,3.41354772,2366.3,2365.9,0.473]
[1725955363624,1.05653,2366.1,2365.7,0.099]
[1725955363833,2.7701998,2365.8,2365.7,0.42267]
[1725955364025,4.91591026,2365.8,2365.7,3.30074112]
[1725955364227,2.35569104,2365.8,2365.7,2.64]
[1725955364430,2.14429378,2365.8,2365.7,3.06268]
[1725955364737,0.21139726,2365.8,2365.7,3.06268]
[1725955364930,2.7701998,2365.9,2365.7,3.06268]
[1725955364931,2.7701998,2365.9,2365.8,0.42266]
[1725955365140,2.7701998,2366.0,2365.9,0.42265]
[1725955365435,2.42534121,2366.0,2365.9,7.72345]
[1725955365632,2.42534121,2366.0,2365.9,8.20415]
[1725955365828,2.21392374,2366.0,2365.9,8.20415]
[1725955366231,2.21392374,2366.1,2366.0,0.42263]
[1725955366421,2.42533537,2366.1,2366.0,0.42263]
[1725955366626,2.42533537,2366.1,2366.0,4.64903]
[1725955367334,2.42533537,2366.1,2366.0,0.42263]
[1725955367527,2.42533537,2366.1,2366.0,4.64903]
[1725955367925,2.42533537,2366.1,2366.0,4.2264]
[1725955368125,2.425336,2366.1,2365.9,3.97774]
[1725955368430,1.65889503,2366.0,2365.9,3.97774]
[1725955368627,1.65889503,2366.0,2365.9,8.20414]
[1725955371232,1.65889503,2366.0,2365.9,3.97774]
[1725955371431,1.65889503,2366.0,2365.9,8.20414]
[1725955371630,1.65889503,2366.0,2365.9,3.97774]
[1725955372228,1.87030843,2366.1,2366.0,0.42263]
[1725955372429,0.21141308,2366.1,2366.0,0.42263]
[1725955372826,0.21141308,2366.1,2365.9,3.5551]
[1725955373027,1.65780936,2366.0,2365.9,3.97775]
[1725955373226,1.65780936,2366.0,2365.8,2.9784499]
[1725955373439,0.42265,2365.9,2365.8,2.64]
[1725955373739,2.84799123,2365.9,2365.8,2.64]
[1725955374132,0.63406749,2365.9,2365.8,2.64]
[1725955374633,0.63406749,2365.9,2365.6,2.64]
[1725955374634,0.42268,2365.7,2365.6,2.64]
[1725955374829,2.14330057,2365.8,2365.7,0.42268]
[1725955375037,1.65730057,2365.8,2365.7,3.06268]
[1725955375238,0.42269,2365.7,2365.4,0.4861]
[1725955375535,1.10467776,2365.6,2365.5,3.06271]
[1725955376835,1.10467776,2365.6,2365.3,2.96859213]
[1725955377028,0.42274,2365.4,2365.3,2.64]
[1725955377229,1.56537776,2365.5,2365.3,2.64]
[1725955377230,1.98810776,2365.5,2365.3,2.64]
[1725955377432,1.10467776,2365.4,2365.3,2.64]
[1725955377626,2.54073057,2365.5,2365.3,2.64]
[1725955378238,1.52647329,2365.4,2365.3,2.64]
[1725955378442,1.65730057,2365.4,2365.1,2.85261834]
[1725955378737,1.60343779,2365.3,2365.1,3.27539834]
[1725955378929,1.10373779,2365.2,2365.1,2.85261834]
[1725955379134,0.4717,2365.2,2365.1,2.85261834]
[1725955379343,0.4228,2365.1,2364.8,0.42283]
[1725955379644,1.10373779,2365.0,2364.7,2.64]
[1725955379840,1.10373779,2365.0,2364.7,3.06285]
[1725955379841,1.99264779,2365.0,2364.7,3.06285]
[1725955380143,1.65730057,2364.8,2364.5,2.739]
[1725955380334,1.65730057,2364.8,2364.7,2.64]
[1725955380840,2.08014057,2364.8,2364.7,2.64]
[1725955381036,0.42287,2364.7,2364.5,3.1358]
[1725955381235,1.10359758,2364.6,2364.5,2.64]
[1725955381437,2.14960057,2364.7,2364.5,2.64]
[1725955381635,1.52538561,2364.6,2364.5,2.64]
[1725955381832,0.42291,2364.4,2364.3,2.64]
[1725955382035,0.42291,2364.4,2364.1,0.91875]
[1725955382036,0.42291,2364.4,2364.1,3.06295]
[1725955382238,0.42295,2364.2,2364.1,2.64]
[1725955382642,4.65255,2364.2,2364.0,0.42298]
[1725955382842,0.91664,2364.3,2364.0,0.42298]
[1725955383051,0.91663,2364.3,2364.1,3.06297]
[1725955383246,0.4937,2364.3,2364.1,3.06297]
[1725955383852,2.01770244,2364.7,2364.4,0.42291]
[1725955384141,0.4923,2364.7,2364.6,2.64]
[1725955384535,0.4804,2364.9,2364.6,3.06288]
[1725955384747,0.4804,2364.9,2364.8,2.64]
[1725955384942,0.90323,2364.9,2364.7,2.64]
[1725955385538,0.4804,2364.9,2364.7,3.06286]
[1725955385739,0.4804,2364.9,2364.8,2.64]
[1725955386340,0.4804,2364.9,2364.8,3.06284]
[1725955386537,0.88859,2365.1,2364.8,6.8688]
[1725955386737,0.4871,2365.2,2365.0,2.64]
[1725955386943,0.4871,2365.2,2365.1,0.42279]
[1725955387346,0.4871,2365.2,2365.0,3.06279]
[1725955387541,0.4871,2365.2,2365.0,2.64]
[1725955387742,0.4871,2365.2,2365.0,3.06279]
[1725955388151,0.4895,2365.6,2365.1,4.228]
[1725955388454,0.4871,2365.9,2365.5,3.06271]
[1725955388751,0.4871,2365.9,2365.7,2.64]
[1725955390653,0.90975,2365.9,2365.5,2.64]
[1725955390844,0.90975,2365.9,2365.5,3.06271]
[1725955391047,2.05903244,2366.1,2365.8,2.64]
[1725955391048,1.10253244,2366.1,2365.8,2.64]
[1725955391253,1.10253244,2366.1,2365.2,0.099]
[1725955391254,1.10253244,2366.1,2366.0,3.06263]
[1725955391446,1.10253244,2366.1,2366.0,2.64]
[1725955391651,1.10253244,2366.1,2366.0,6.8664]
[1725955391850,1.10253244,2366.1,2366.0,7.28903]
[1725955392451,1.10253244,2366.1,2366.0,6.8664]
[1725955393354,0.42256,2366.4,2366.0,7.28902]
[1725955393553,0.42256,2366.4,2366.0,3.06262]
[1725955394351,0.89645,2366.5,2366.2,2.64]
[1725955394556,0.4739,2366.5,2366.2,2.64]
[1725955394762,0.89645,2366.5,2366.2,2.64]
[1725955395149,0.42256,2366.4,2366.2,2.64]
[1725955395653,0.4739,2366.5,2366.2,2.64]
[1725955395858,0.42256,2366.4,2366.2,2.64]